bitfinex/quotes_BTCUSD_20250205
["timestamp","ask_amount","ask_price","bid_price","bid_amount"]
[1738780545282,0.0001069,97189.0,97188.0,0.56146904]
[1738780545491,0.0001069,97189.0,97188.0,0.59339488]
[1738780546095,0.0001069,97189.0,97188.0,0.56146904]
[1738780547130,0.0001069,97189.0,97188.0,0.59338757]
[1738780547382,0.0001069,97189.0,97188.0,0.56146904]
[1738780551031,0.0001069,97189.0,97188.0,0.56169353]
[1738780557342,0.0001069,97189.0,97188.0,0.59359724]
[1738780559440,0.0001069,97189.0,97188.0,0.44761099]
[1738780559641,0.0001069,97189.0,97188.0,0.31320363]
[1738780563024,0.0001069,97189.0,97188.0,0.41570728]
[1738780563233,9e-07,97189.0,97188.0,0.49500728]
[1738780563446,0.2,97200.0,97199.0,0.304322]
[1738780563666,0.2,97200.0,97199.0,1.12960763]
[1738780564921,0.2,97200.0,97199.0,1.1400057]
[1738780565339,0.2,97200.0,97199.0,1.17195691]
[1738780565728,0.2,97200.0,97199.0,1.1400057]
[1738780566271,0.2,97200.0,97199.0,1.17196692]
[1738780568381,0.2,97200.0,97199.0,1.19496692]
[1738780569169,0.2,97200.0,97199.0,1.2155744]
[1738780571048,0.08199704,97238.0,97237.0,0.154262]
[1738780571222,0.08199704,97238.0,97237.0,0.1696882]
[1738780571453,0.0833,97239.0,97238.0,0.15426]
[1738780571853,0.0833,97239.0,97237.0,0.0154262]
[1738780571986,0.00092242,97238.0,97227.0,0.205702]
[1738780572194,0.00092242,97238.0,97228.0,0.205702]
[1738780572394,0.00092242,97238.0,97237.0,0.154262]
[1738780572622,0.0833,97239.0,97237.0,0.154262]
[1738780573163,0.08320859,97239.0,97237.0,0.154262]
[1738780573346,0.08320859,97239.0,97235.0,0.154264]
[1738780573554,0.08320859,97239.0,97233.0,0.205691]
[1738780573765,0.08320859,97239.0,97236.0,0.154263]
[1738780573971,0.08320859,97239.0,97231.0,0.15427]
[1738780574207,0.00092242,97238.0,97233.0,0.154267]
[1738780575430,0.00092242,97238.0,97218.0,0.205722]
[1738780575659,0.154262,97237.0,97229.0,0.154274]
[1738780575963,0.0465,97228.0,97220.0,0.154289]
[1738780576169,0.07772242,97227.0,97219.0,0.205719]
[1738780576368,0.07772242,97227.0,97217.0,0.0101844]
[1738780576506,0.07772242,97227.0,97221.0,0.154287]
[1738780576707,0.07772242,97227.0,97218.0,0.205722]
[1738780576902,0.07772242,97227.0,97221.0,0.154286]
[1738780577310,0.0768,97227.0,97226.0,0.154279]
[1738780577492,0.0465,97228.0,97227.0,0.154278]
[1738780577898,0.205655,97251.0,97225.0,0.205706]
[1738780577899,0.047,97238.0,97225.0,0.205706]
[1738780578097,0.047,97238.0,97232.0,0.15427]
[1738780578359,0.10250365,97237.0,97227.0,0.154276]
[1738780578535,0.00092242,97236.0,97229.0,0.154274]
[1738780578734,0.10250365,97235.0,97229.0,0.0154274]
[1738780578938,0.25676865,97235.0,97229.0,0.0154274]
[1738780579552,0.10250365,97235.0,97229.0,0.0154274]
[1738780581110,0.047,97238.0,97229.0,0.0154274]
[1738780581240,0.047,97238.0,97233.0,0.154267]
[1738780581629,0.047,97238.0,97234.0,0.18237251]
[1738780583181,0.047,97238.0,97234.0,0.02810651]
[1738780583383,0.047,97238.0,97235.0,0.154265]
[1738780584728,0.047,97238.0,97234.0,0.02810651]
[1738780584963,0.047,97238.0,97234.0,0.18237251]
[1738780585149,0.047,97238.0,97235.0,0.0154274]
[1738780585773,0.047,97238.0,97235.0,0.1696924]
[1738780586937,0.047,97238.0,97235.0,0.0154274]
[1738780587143,0.047,97238.0,97237.0,0.154262]
[1738780588220,0.0767069,97239.0,97235.0,0.2211124]
[1738780588354,0.0001069,97239.0,97238.0,0.15426]
[1738780591242,0.0001069,97239.0,97226.0,0.205704]
[1738780591243,0.0773,97238.0,97228.0,0.72278198]
[1738780591417,0.00092242,97237.0,97220.0,0.14226504]
[1738780591617,0.00092242,97237.0,97226.0,0.205706]
[1738780591820,0.00092242,97237.0,97232.0,0.154269]
[1738780592063,0.00092242,97237.0,97230.0,0.154272]
[1738780592273,0.00092242,97237.0,97228.0,0.205701]
[1738780592540,0.00092242,97237.0,97231.0,0.154271]
[1738780593377,0.00092242,97237.0,97232.0,0.154269]
[1738780593811,0.15518542,97237.0,97230.0,0.154272]
[1738780594308,0.00092242,97237.0,97221.0,0.15]
[1738780594511,0.154269,97233.0,97224.0,0.02947321]
[1738780594737,0.00092242,97232.0,97227.0,0.154277]
[1738780594896,0.10250365,97236.0,97226.0,0.205706]
[1738780595109,0.10250365,97236.0,97225.0,0.205708]
[1738780595319,0.10250365,97236.0,97227.0,0.205704]
[1738780595545,0.10250365,97236.0,97231.0,0.15427]
[1738780595752,0.10250365,97236.0,97226.0,0.01428498]
[1738780595753,0.0773,97238.0,97234.0,0.154265]
[1738780595950,0.0773,97238.0,97231.0,0.15427]
[1738780596389,0.0773,97238.0,97228.0,0.14226504]
[1738780596562,0.0773,97238.0,97233.0,0.154267]
[1738780596760,0.0479069,97239.0,97229.0,0.01567743]
[1738780596966,0.0001069,97239.0,97229.0,0.01567743]
[1738780597171,0.0001069,97239.0,97235.0,0.154264]
[1738780597757,0.0001069,97239.0,97228.0,0.14226504]
[1738780597758,0.0001069,97239.0,97238.0,0.15426]
[1738780598212,0.0001069,97239.0,97238.0,0.30528834]
[1738780598433,0.0001069,97239.0,97238.0,0.33633637]
[1738780602442,0.0001069,97239.0,97238.0,0.43884002]
[1738780602654,0.0001069,97239.0,97238.0,0.47847296]
[1738780603576,0.0001069,97239.0,97238.0,0.34672038]
[1738780603793,0.0001069,97239.0,97238.0,0.15426]
[1738780608596,0.0001069,97239.0,97238.0,0.30426]
[1738780611395,0.0001069,97239.0,97238.0,0.30448428]
[1738780611611,0.0001069,97239.0,97238.0,0.56721519]
[1738780611612,9e-07,97239.0,97238.0,0.56721519]
[1738780611841,0.0145032,97283.0,97268.0,0.304213]
[1738780612111,0.0145032,97283.0,97268.0,1.02699498]
[1738780612316,0.0145032,97283.0,97268.0,1.05898769]
[1738780612940,0.0145032,97283.0,97268.0,1.02699498]
[1738780616049,0.0145032,97283.0,97268.0,1.12949863]
[1738780617273,0.0145032,97283.0,97268.0,1.21179863]
[1738780617469,0.0145032,97283.0,97268.0,1.22225212]
[1738780619006,0.0145032,97283.0,97268.0,1.24139613]
[1738780620558,0.0145032,97283.0,97268.0,1.22225212]
[1738780623304,0.0145032,97283.0,97268.0,0.88744847]
[1738780623947,0.0145032,97283.0,97268.0,1.13995212]
[1738780627454,0.0145032,97283.0,97268.0,1.03744847]
[1738780627655,0.0787067,97270.0,97268.0,0.15]
[1738780627857,0.0787067,97270.0,97265.0,0.154217]
[1738780627858,0.10261035,97269.0,97234.0,0.74326206]
[1738780628057,0.205619,97267.0,97247.0,0.154246]
[1738780628258,0.154222,97262.0,97248.0,0.0154246]
[1738780628472,0.15514642,97261.0,97240.0,0.14226504]
[1738780628682,0.00092242,97261.0,97249.0,0.154242]
[1738780629140,0.0786,97259.0,97238.0,0.00022428]
[1738780629337,0.154259,97239.0,97238.0,0.00022428]
[1738780629727,0.15518142,97239.0,97238.0,0.00022428]
[1738780629932,0.00092242,97239.0,97238.0,0.00022428]
[1738780630134,0.25768507,97239.0,97238.0,0.00022428]
[1738780630361,0.18550365,97239.0,97238.0,0.00022428]
[1738780630578,0.18642607,97239.0,97238.0,0.00022428]
[1738780630783,0.083,97239.0,97238.0,0.00022428]
[1738780630977,0.0814,97249.0,97239.0,0.154257]
[1738780631158,0.18390365,97249.0,97238.0,0.02081621]
[1738780631423,0.33814665,97249.0,97238.0,0.00022428]
[1738780631623,0.15516742,97248.0,97238.0,0.00022428]
[1738780631823,0.18390365,97249.0,97239.0,0.154258]
[1738780632028,0.33814665,97249.0,97238.0,0.15448428]
[1738780632337,0.18390365,97249.0,97238.0,0.00022428]
[1738780632551,0.18390365,97249.0,97239.0,0.02059163]
[1738780632753,0.18390365,97249.0,97244.0,0.15425]
[1738780632964,0.0481,97258.0,97239.0,0.14226504]
[1738780633169,0.0481,97258.0,97251.0,0.154239]
[1738780633598,0.0481,97258.0,97250.0,0.15424]
[1738780633803,0.00092242,97257.0,97240.0,0.205676]
[1738780634003,0.00092242,97257.0,97239.0,0.14226504]
[1738780635000,0.0481,97258.0,97253.0,0.154235]
[1738780635833,0.0481,97258.0,97249.0,0.154242]
[1738780636016,0.0481,97258.0,97254.0,0.154234]
[1738780636213,0.0481,97258.0,97253.0,0.154235]
[1738780636476,0.0481,97258.0,97251.0,0.154238]
[1738780636795,0.0481,97258.0,97248.0,0.205658]
[1738780637014,0.0481,97258.0,97240.0,0.205676]
[1738780637221,0.0481,97258.0,97251.0,0.154239]
[1738780637936,0.0481,97258.0,97246.0,0.205663]
[1738780638264,0.0481,97258.0,97252.0,0.154237]
[1738780639695,0.0811,97267.0,97257.0,0.15423]
[1738780639922,0.25671965,97266.0,97256.0,0.15423]
[1738780640052,0.25671965,97266.0,97240.0,0.34794004]
[1738780640053,0.10250365,97266.0,97240.0,0.34794004]
[1738780640257,0.00092242,97265.0,97241.0,0.15]
[1738780640559,0.10250365,97264.0,97255.0,0.154233]
[1738780640952,0.10250365,97264.0,97250.0,0.14226504]
[1738780641147,0.0811,97267.0,97251.0,0.205651]
[1738780641354,0.0001067,97269.0,97268.0,0.154213]
[1738780641819,0.0001067,97269.0,97266.0,0.20562]
[1738780641989,0.0001067,97269.0,97268.0,0.154213]
[1738780642808,0.0001067,97269.0,97253.0,0.01011837]
[1738780643044,0.0001067,97269.0,97259.0,0.14226504]
[1738780643301,0.0001067,97269.0,97268.0,0.154213]
[1738780643944,0.0001067,97269.0,97263.0,0.205627]
[1738780644099,0.0001067,97269.0,97260.0,0.02296881]
[1738780644100,0.154214,97268.0,97260.0,0.154225]
[1738780644302,0.154217,97265.0,97256.0,0.154231]
[1738780644527,0.00092242,97264.0,97247.0,0.205661]
[1738780644730,0.10261035,97269.0,97251.0,0.15]
[1738780644930,0.10261035,97269.0,97259.0,0.14226504]
[1738780645108,0.10261035,97269.0,97260.0,0.154225]
[1738780645458,0.10261035,97269.0,97261.0,0.154223]
[1738780645645,0.10261035,97269.0,97251.0,0.72278198]
[1738780645646,0.0001067,97269.0,97259.0,0.14226504]
[1738780645846,0.0001067,97269.0,97268.0,0.154213]
[1738780647400,0.0001067,97269.0,97260.0,0.0142265]
[1738780647609,0.00102912,97269.0,97260.0,0.0142265]
[1738780647810,0.0001067,97269.0,97264.0,0.154217]
[1738780649241,0.0001067,97269.0,97266.0,0.154216]
[1738780649442,0.0001067,97269.0,97267.0,0.02930741]
[1738780651472,0.0001067,97269.0,97268.0,0.154213]
[1738780651876,0.0001067,97269.0,97267.0,0.18352141]
[1738780652054,0.0001067,97269.0,97268.0,0.154213]
[1738780652212,0.0001067,97269.0,97267.0,0.02930741]
[1738780652421,0.0001067,97269.0,97254.0,0.01045035]
[1738780652611,0.0001067,97269.0,97265.0,0.154216]
[1738780652811,0.0001067,97269.0,97253.0,0.15]
[1738780653305,0.0001067,97269.0,97261.0,0.154223]
[1738780653480,0.17970365,97268.0,97253.0,0.03067667]
[1738780653780,0.154217,97266.0,97255.0,0.154232]
[1738780653922,0.154223,97262.0,97253.0,0.18067667]
[1738780654126,0.05062242,97261.0,97243.0,0.205669]
[1738780654369,0.05062242,97261.0,97240.0,0.72278198]
[1738780654723,0.05062242,97261.0,97224.0,0.25283228]
[1738780654724,0.10250365,97260.0,97230.0,1.26490626]
[1738780654935,0.205642,97257.0,97243.0,0.154251]
[1738780655135,0.10342607,97256.0,97234.0,0.01029548]
[1738780655448,0.10342607,97256.0,97240.0,0.14226504]
[1738780655659,0.00092242,97256.0,97255.0,0.154233]
[1738780655991,0.0497,97261.0,97247.0,0.205661]
[1738780656247,0.0772,97268.0,97262.0,0.154221]
[1738780656626,0.0772,97268.0,97250.0,0.14226504]
[1738780656865,0.0001067,97269.0,97259.0,0.205636]
[1738780657042,0.0001067,97269.0,97258.0,0.14226504]
[1738780657043,0.0001067,97269.0,97260.0,0.03071585]
[1738780657463,0.0001067,97269.0,97267.0,0.154214]
[1738780657682,0.0001067,97269.0,97264.0,0.154217]
[1738780657885,0.0001067,97269.0,97263.0,0.205626]
[1738780658100,0.0001067,97269.0,97265.0,0.154217]
[1738780658298,0.0001067,97269.0,97265.0,0.205622]
[1738780658673,0.0001067,97269.0,97266.0,0.03071585]
[1738780658893,0.0001067,97269.0,97266.0,0.00571585]
[1738780659102,0.0001067,97269.0,97268.0,0.304213]
[1738780659264,0.0001067,97269.0,97268.0,0.31951391]
[1738780659982,0.0001067,97269.0,97268.0,0.304213]
[1738780662675,0.0001067,97269.0,97248.0,0.72278198]
[1738780662879,0.0001067,97269.0,97250.0,0.14226504]
[1738780663074,0.0001067,97269.0,97268.0,0.154213]
[1738780663472,0.0001067,97269.0,97265.0,0.154216]
[1738780663733,0.0001067,97269.0,97260.0,0.205634]
[1738780663734,0.0001067,97269.0,97268.0,0.154213]
[1738780663966,0.0001067,97269.0,97268.0,0.15404677]
[1738780670861,0.0001067,97269.0,97268.0,0.15427105]
[1738780672145,0.0001067,97269.0,97268.0,0.18504402]
[1738780672365,0.1543177,97269.0,97268.0,0.03099725]
[1738780672577,0.27226379,97269.0,97268.0,0.03099725]
[1738780672805,0.0001067,97269.0,97268.0,0.03099725]
[1738780673489,0.0001067,97269.0,97268.0,0.00022428]
[1738780673710,0.00102912,97269.0,97268.0,0.00022428]
[1738780674713,0.0001067,97269.0,97268.0,0.00022428]
[1738780676355,0.33362135,97269.0,97268.0,0.00022428]
[1738780676811,0.4371476,97269.0,97268.0,0.00022428]
[1738780678048,0.22891035,97269.0,97268.0,0.00022428]
[1738780678229,0.0001067,97269.0,97268.0,0.15443728]
[1738780678428,0.0001067,97269.0,97268.0,0.00022428]
[1738780678672,0.00102912,97269.0,97268.0,0.00022428]
[1738780679232,0.10353277,97269.0,97268.0,0.00022428]
[1738780680207,0.10261035,97269.0,97268.0,0.00022428]
[1738780681027,0.10261035,97269.0,97268.0,0.15443728]
[1738780681368,0.10261035,97269.0,97268.0,0.00022428]
[1738780681569,0.0001067,97269.0,97268.0,0.15443728]
[1738780683337,0.0001067,97269.0,97268.0,0.03099501]
[1738780683541,0.10261035,97269.0,97268.0,0.03099501]
[1738780683822,0.18293277,97269.0,97268.0,0.03099501]
[1738780684313,0.18293277,97269.0,97268.0,0.00022428]
[1738780684519,0.10353277,97269.0,97268.0,0.15443728]
[1738780684719,0.10261035,97269.0,97268.0,0.15443728]
[1738780686060,0.0001067,97269.0,97268.0,0.15443728]
[1738780691424,0.0001067,97269.0,97268.0,0.00022428]
[1738780691748,0.0001067,97269.0,97268.0,0.15443728]
[1738780693089,0.0001067,97269.0,97268.0,0.00022428]
[1738780693317,0.25682135,97269.0,97268.0,0.00022428]
[1738780693454,0.30332135,97269.0,97268.0,0.00022428]
[1738780694090,0.38268606,97269.0,97268.0,0.00022428]
[1738780694790,0.39309419,97269.0,97268.0,0.00022428]
[1738780695191,0.49789419,97269.0,97268.0,0.00022428]
[1738780698186,0.82299419,97269.0,97268.0,0.00022428]
[1738780699859,0.98299419,97269.0,97268.0,0.00022428]
[1738780700454,2.48299419,97269.0,97268.0,0.00022428]
[1738780701100,0.98299419,97269.0,97268.0,0.00022428]
[1738780701519,0.98195419,97269.0,97268.0,0.00022428]
[1738780704033,0.79999419,97269.0,97268.0,0.00022428]
[1738780704563,0.82299419,97269.0,97268.0,0.00022428]
[1738780705455,0.97299419,97269.0,97268.0,0.00022428]
[1738780706116,0.98299419,97269.0,97268.0,0.00022428]
[1738780706317,0.98299419,97269.0,97267.0,0.00502586]
[1738780706318,0.464113,97268.0,97267.0,0.00502586]
[1738780706669,0.6691203,97268.0,97267.0,0.00502586]
[1738780707291,0.304151,97244.0,97243.0,0.00022428]
[1738780707537,0.40665465,97244.0,97243.0,0.00022428]
[1738780708097,0.46834465,97244.0,97243.0,0.00022428]
[1738780709047,0.95344465,97244.0,97243.0,0.00022428]
[1738780709249,1.0559483,97244.0,97243.0,0.00022428]
[1738780710635,1.06621027,97244.0,97243.0,0.00022428]
[1738780711800,1.17441027,97244.0,97243.0,0.00022428]
[1738780713121,1.06621027,97244.0,97243.0,0.00022428]
[1738780713687,1.03321027,97244.0,97243.0,0.00022428]
[1738780713819,1.04217027,97244.0,97243.0,0.00022428]
[1738780714834,1.05621027,97244.0,97243.0,0.00022428]
[1738780715030,1.06517027,97244.0,97243.0,0.00022428]
[1738780719323,1.07517027,97244.0,97243.0,0.00022428]
[1738780719520,1.07517027,97244.0,97211.0,0.08199704]
[1738780719521,0.215961,97231.0,97211.0,0.08199704]
[1738780719730,0.61306465,97231.0,97211.0,0.08199704]
[1738780719938,2.11306465,97231.0,97211.0,0.08199704]
[1738780722998,0.61306465,97231.0,97211.0,0.08199704]
[1738780723201,0.93816465,97231.0,97211.0,0.08199704]
[1738780723401,1.01752936,97231.0,97211.0,0.08199704]
[1738780724662,1.02763356,97231.0,97211.0,0.08199704]
[1738780726109,1.03659356,97231.0,97211.0,0.08199704]
[1738780726310,0.91499356,97231.0,97211.0,0.08199704]
[1738780731096,0.82666885,97231.0,97211.0,0.08199704]
[1738780734717,0.67666885,97231.0,97211.0,0.08199704]
[1738780737080,0.42760365,97231.0,97225.0,0.0804]
[1738780737496,0.58187465,97231.0,97225.0,0.0804]
[1738780739327,0.42760365,97231.0,97225.0,0.0804]
[1738780739536,0.58187465,97231.0,97225.0,0.0804]
[1738780741041,0.25677465,97231.0,97225.0,0.0804]
[1738780741891,0.31846465,97231.0,97215.0,0.0804]
[1738780742403,0.25677465,97231.0,97215.0,0.0804]
[1738780743070,0.392493,97231.0,97207.0,0.2328]
[1738780744383,0.392493,97231.0,97207.0,0.0828]
[1738780744766,0.415493,97231.0,97207.0,0.0828]
[1738780744968,0.415493,97231.0,97206.0,0.0465]
[1738780746812,0.740593,97231.0,97206.0,0.0465]
[1738780748150,0.66656465,97231.0,97210.0,0.14226504]
[1738780748353,0.79356465,97231.0,97210.0,0.14226504]
[1738780748601,0.81656465,97231.0,97205.0,7.214e-05]
[1738780749057,0.89746465,97231.0,97205.0,7.214e-05]
[1738780750149,0.89714995,97231.0,97205.0,7.214e-05]
[1738780750941,0.9996536,97231.0,97205.0,7.214e-05]
[1738780753944,0.89714995,97231.0,97205.0,7.214e-05]
[1738780754446,0.15,97208.0,97201.0,0.07633274]
[1738780754649,0.154306,97209.0,97201.0,0.07633274]
[1738780754650,0.10250365,97207.0,97201.0,0.07633274]
[1738780754867,0.10250365,97207.0,97197.0,0.0456]
[1738780755083,0.00092242,97206.0,97197.0,0.0456]
[1738780755281,0.10250365,97205.0,97197.0,0.0456]
[1738780755490,0.00092242,97204.0,97197.0,0.0456]
[1738780755692,0.10342607,97204.0,97197.0,0.0456]
[1738780756945,0.10250365,97204.0,97197.0,0.0456]
[1738780757170,0.01033577,97207.0,97198.0,0.0331974]
[1738780757371,0.01033577,97207.0,97206.0,0.233211]
[1738780757546,0.01033577,97207.0,97198.0,0.75597938]
[1738780757547,0.3251,97231.0,97218.0,0.154291]
[1738780757746,0.15,97225.0,97219.0,0.0789]
[1738780757949,0.15,97223.0,97219.0,0.0789]
[1738780758150,0.15,97221.0,97219.0,0.0789]
[1738780758905,0.10250365,97222.0,97219.0,0.0789]
[1738780761715,0.10250365,97222.0,97219.0,0.23319]
[1738780761908,0.10250365,97222.0,97219.0,0.0789]
[1738780763822,0.10250365,97222.0,97213.0,0.234999]
[1738780764035,0.10250365,97222.0,97213.0,0.0807]
[1738780764451,0.10342607,97222.0,97213.0,0.0807]
[1738780764652,0.10342607,97222.0,97213.0,0.24533651]
[1738780764829,0.10342607,97222.0,97213.0,0.09103651]
[1738780765005,0.10261055,97222.0,97214.0,0.154298]
[1738780765601,0.10261055,97222.0,97213.0,0.09103651]
[1738780766040,0.10261055,97222.0,97213.0,0.24533451]
[1738780766278,0.10261055,97222.0,97214.0,0.0331974]
[1738780766429,0.10261055,97222.0,97214.0,0.1874954]
[1738780766646,0.10261055,97222.0,97214.0,0.0331974]
[1738780766802,0.10261055,97222.0,97217.0,0.154293]
[1738780767474,0.10261055,97222.0,97217.0,0.154292]
[1738780767782,0.10261055,97222.0,97218.0,0.01033651]
[1738780768076,0.10261055,97222.0,97218.0,0.16462851]
[1738780768368,0.0001069,97222.0,97218.0,0.01033651]
[1738780768522,0.0001069,97222.0,97221.0,0.154287]
[1738780768967,0.0001069,97222.0,97219.0,0.205719]
[1738780769195,0.0001069,97222.0,97221.0,0.154287]
[1738780772015,0.0001069,97222.0,97219.0,0.20572]
[1738780772290,0.0001069,97222.0,97213.0,0.0807]
[1738780772606,0.0001069,97222.0,97221.0,0.154287]
[1738780775246,0.0001069,97222.0,97221.0,1.00309754]
[1738780775448,0.0001069,97222.0,97221.0,1.00206898]
[1738780775667,0.0001069,97222.0,97221.0,1.03412362]
[1738780776533,0.0001069,97222.0,97221.0,1.00206898]
[1738780778097,0.0001069,97222.0,97221.0,1.01247012]
[1738780778307,0.0001069,97222.0,97221.0,1.16247012]
[1738780778729,0.0001069,97222.0,97221.0,1.19449738]
[1738780779353,0.0001069,97222.0,97221.0,1.16247012]
[1738780779779,0.0001069,97222.0,97221.0,1.1944882]
[1738780780598,0.0001069,97222.0,97221.0,1.16247012]
[1738780782013,0.0001069,97222.0,97221.0,1.26497377]
[1738780782216,0.0001069,97222.0,97221.0,1.29697496]
[1738780782606,9e-07,97222.0,97221.0,1.3129152]
[1738780782809,9e-07,97222.0,97221.0,1.30697496]
[1738780783011,9e-07,97222.0,97221.0,1.31697496]
[1738780783166,0.08199704,97262.0,97237.0,0.154262]
[1738780783379,0.08199704,97262.0,97237.0,1.27037383]
[1738780784008,0.0001067,97270.0,97237.0,1.27037383]
[1738780784994,0.1543157,97270.0,97237.0,1.27037383]
[1738780785201,0.0001067,97270.0,97237.0,1.27037383]
[1738780785801,0.0001067,97270.0,97237.0,1.16787018]
[1738780786159,0.0821,97259.0,97237.0,1.16787018]
[1738780786386,0.0821,97259.0,97237.0,1.1780157]
[1738780786572,0.0757,97265.0,97237.0,1.1780157]
[1738780786725,0.07662242,97265.0,97237.0,1.1780157]
[1738780787132,0.00092242,97264.0,97237.0,1.1780157]
[1738780787335,0.0231069,97267.0,97237.0,1.1780157]
[1738780787558,0.1543219,97267.0,97237.0,1.1780157]
[1738780787760,0.0001069,97267.0,97237.0,1.1780157]
[1738780787914,0.1543219,97267.0,97237.0,1.1780157]
[1738780788404,0.0231069,97267.0,97237.0,1.1780157]
[1738780788526,0.1773219,97267.0,97237.0,1.1780157]
[1738780789213,0.15513842,97266.0,97237.0,1.1780157]
[1738780789409,0.15513942,97266.0,97237.0,1.1780157]
[1738780789739,0.154219,97264.0,97237.0,1.1780157]
[1738780790029,0.0001069,97267.0,97237.0,1.1780157]
[1738780797458,0.0001069,97267.0,97237.0,1.28051935]
[1738780798067,0.0001069,97267.0,97237.0,1.31246181]
[1738780801073,0.0465,97259.0,97237.0,0.91913196]
[1738780801333,0.00092242,97258.0,97237.0,0.87704398]
[1738780801753,0.00092242,97258.0,97237.0,0.154262]
[1738780801956,0.0819,97241.0,97237.0,0.154262]
[1738780802441,0.0819,97251.0,97237.0,0.154262]
[1738780802920,0.0770069,97251.0,97245.0,0.154248]
[1738780803399,0.0770069,97251.0,97246.0,0.154247]
[1738780803667,0.0770069,97251.0,97250.0,0.154241]
[1738780803925,0.0465,97259.0,97247.0,0.2353122]
[1738780804171,0.0001069,97267.0,97262.0,0.154221]
[1738780804418,0.0001069,97267.0,97258.0,0.154227]
[1738780804419,0.10261055,97267.0,97258.0,0.154227]
[1738780804613,0.10261055,97267.0,97259.0,0.154227]
[1738780804987,0.00092242,97266.0,97258.0,0.154128]
[1738780805206,0.00092242,97266.0,97258.0,0.16801071]
[1738780805415,0.00092242,97266.0,97250.0,0.14226504]
[1738780805635,0.00092242,97266.0,97257.0,0.15423]
[1738780805904,0.0829,97265.0,97251.0,0.205653]
[1738780806230,0.10261055,97267.0,97184.0,1.078967]
[1738780806231,0.0461,97256.0,97242.0,0.205672]
[1738780806443,0.0461,97256.0,97225.0,0.02054137]
[1738780806444,0.0829,97251.0,97231.0,0.205695]
[1738780806607,0.10342607,97250.0,97242.0,0.154253]
[1738780806786,0.10342607,97250.0,97240.0,0.154257]
[1738780807237,0.10342607,97250.0,97235.0,0.205685]
[1738780807438,0.10342607,97250.0,97241.0,0.154255]
[1738780807645,0.023,97249.0,97230.0,0.72278198]
[1738780807883,0.0778,97246.0,97220.0,0.14226504]
[1738780808100,0.10342607,97245.0,97229.0,0.154273]
[1738780808312,0.0755,97244.0,97227.0,0.154276]
[1738780808572,0.0755,97244.0,97217.0,0.92850498]
[1738780808573,0.0755,97241.0,97217.0,0.72278198]
[1738780808749,0.0808,97238.0,97221.0,0.154287]
[1738780808989,0.0808,97228.0,97210.0,0.01001989]
[1738780809162,0.235084,97223.0,97201.0,0.00022449]
[1738780809369,0.33758765,97223.0,97203.0,0.205754]
[1738780809575,0.36058765,97223.0,97205.0,0.205748]
[1738780809769,0.36058765,97223.0,97206.0,0.154311]
[1738780809973,0.36058765,97223.0,97204.0,0.154314]
[1738780810218,0.36058765,97223.0,97201.0,0.08222153]
[1738780812228,0.36058765,97223.0,97202.0,0.154317]
[1738780812427,0.36058765,97223.0,97203.0,0.154315]
[1738780812629,0.36058765,97223.0,97202.0,0.154316]
[1738780812828,0.36058765,97223.0,97201.0,0.23653953]
[1738780813032,0.36058765,97223.0,97202.0,0.205756]
[1738780813232,0.36058765,97223.0,97202.0,0.154316]
[1738780813436,0.36058765,97223.0,97201.0,0.08222153]
[1738780814259,0.36058765,97223.0,97201.0,0.23653853]
[1738780814618,0.37103707,97223.0,97201.0,0.08222153]
[1738780815133,0.37103707,97223.0,97201.0,0.23653953]
[1738780815342,0.37103707,97223.0,97201.0,0.08222153]
[1738780815566,0.45425198,97223.0,97201.0,0.08222153]
[1738780816543,0.45425198,97223.0,97201.0,0.23654053]
[1738780817388,0.37103707,97223.0,97201.0,0.08222153]
[1738780817609,0.37103707,97223.0,97201.0,0.23653853]
[1738780817827,0.37103707,97223.0,97202.0,0.154316]
[1738780818046,0.43272707,97223.0,97202.0,0.154316]
[1738780818265,0.37103707,97223.0,97202.0,0.154316]
[1738780818708,0.37103707,97223.0,97204.0,0.154313]
[1738780819155,0.37103707,97223.0,97202.0,0.205756]
[1738780819662,0.37103707,97223.0,97201.0,0.28797853]
[1738780820252,0.37103707,97223.0,97202.0,0.154317]
[1738780821730,0.37103707,97223.0,97201.0,0.08222153]
[1738780821953,0.84613707,97223.0,97201.0,0.00022449]
[1738780822162,0.154317,97202.0,97201.0,0.00022449]
[1738780822377,0.40652065,97202.0,97201.0,0.00022449]
[1738780825429,0.22920365,97202.0,97201.0,0.00022449]
[1738780825634,0.10250365,97202.0,97201.0,0.00022449]
[1738780825839,0.25682065,97202.0,97201.0,0.00022449]
[1738780826031,0.12550365,97202.0,97201.0,0.00022449]
[1738780827881,0.0822,97217.0,97201.0,0.00022449]
[1738780828083,0.10250365,97216.0,97201.0,0.00022449]
[1738780828417,0.023,97215.0,97202.0,0.154317]
[1738780828595,0.10250365,97214.0,97204.0,0.154313]
[1738780828823,0.08801538,97214.0,97206.0,0.154311]
[1738780829243,0.08801538,97214.0,97205.0,0.154311]
[1738780829661,0.08801538,97214.0,97201.0,0.00022449]
[1738780830081,0.0783,97233.0,97203.0,0.15]
[1738780830322,0.530768,97244.0,97220.0,0.14226504]
[1738780830323,0.10250365,97232.0,97220.0,0.14226504]
[1738780830765,0.10250365,97232.0,97224.0,0.154282]
[1738780830971,0.10250365,97232.0,97210.0,0.34800404]
[1738780831174,0.10250365,97232.0,97212.0,0.00102852]
[1738780831396,0.10250365,97232.0,97218.0,0.154291]
[1738780831615,0.02392242,97231.0,97219.0,0.0154291]
[1738780831843,0.023,97229.0,97210.0,0.14226504]
[1738780832061,0.205659,97248.0,97201.0,0.87300647]
[1738780832062,0.10250365,97228.0,97220.0,0.14226504]
[1738780832266,0.023,97227.0,97220.0,0.14226504]
[1738780832475,0.10250365,97226.0,97220.0,0.154288]
[1738780832681,0.10250365,97226.0,97218.0,0.154291]
[1738780833153,0.10250365,97226.0,97213.0,0.205733]
[1738780833360,0.10250365,97226.0,97217.0,0.154293]
[1738780833570,0.10250365,97226.0,97218.0,0.154291]
[1738780833743,0.10250365,97226.0,97211.0,0.205738]
[1738780833955,0.02392242,97225.0,97201.0,0.00022449]
[1738780834162,0.023,97223.0,97207.0,0.154308]
[1738780834317,0.023,97221.0,97210.0,0.14226504]
[1738780834518,0.10250365,97220.0,97210.0,0.14226504]
[1738780835164,0.01037517,97226.0,97210.0,0.14226504]
[1738780835375,0.10250365,97225.0,97210.0,0.34800404]
[1738780835572,0.023,97224.0,97212.0,0.154301]
[1738780835775,0.10250365,97223.0,97210.0,0.34800404]
[1738780835970,0.10250365,97223.0,97213.0,0.1543]
[1738780836176,0.10250365,97223.0,97210.0,0.14226504]
[1738780836381,0.00092242,97222.0,97205.0,0.20575]